Cogmind - Beta 15 @@@ ROGUE MODE // 2025.07.23 @ 10:23:34 Player: beans Result: Destroyed by Y-45 Defender with Beam Rifle Performance ------------- Evolutions (2) 1000 Regions Visited (7) 1400 Robots Destroyed (69) 345 Value Destroyed (2426) 2426 Prototype IDs (26) 520 Alien Tech Used (0) 0 Bonus (559) 559 TOTAL SCORE: 6250 Bonus ------- High Alert Combat Kills 59 Entered Garrisons 200 Aligned with FarCom 300 Cogmind --------- Core Integrity 0/550 Matter 285/300 Energy 111/150 System Corruption 5% Temperature Cool (9) Movement Treading (152) Location -8/Materials Parts ------- > --- POWER (2) -------- Micro Nuclear Core > --- PROPULSION (4) --- Improved Treads Advanced Treads > --- UTILITY (3) ------ Armor Integrity Analyzer > --- WEAPON (2) ------- Particle Gun > --- INVENTORY (5) ---- Micro Nuclear Core Flight Unit Improved Signal Interpreter Targeting Computer Heavy Ion Cannon Peak State ------------ > --- POWER ------------ Improved Ion Engine Improved Deuterium Engine > --- PROPULSION ------- Aluminum Leg Carbon-fiber Leg Carbon-fiber Leg Carbon-fiber Leg > --- UTILITY ---------- Improved Heat Sink Improved Heat Sink > --- WEAPON ----------- Firepult > --- INVENTORY -------- Flight Unit Improved Signal Interpreter Shock Rifle [Rating: 42] Favorites ----------- Power Light Ion Engine Engine Light Ion Engine Power Core Micro Nuclear Core Propulsion Carbon-fiber Leg Treads Light Treads Leg Carbon-fiber Leg Wheel Wheel Flight Unit Flight Unit Utility Improved Heat Sink Device Improved Heat Sink Processor Armor Integrity Analyzer Protection Weapon Shielding Weapon Ion Cannon Energy Gun Advanced Beam Rifle Energy Cannon Ion Cannon Ballistic Gun Light Assault Rifle Build | -11 -10 -10 -10 -9 -8 -8 -8 ------- Run | Yrd Mat Min Exi Min Mat Gar Mat Slots Evolved 4 | . . . . . 4 . . Power 1 | . . . . . 1 . . Propulsion 2 | . . . . . 2 . . Utility 1 | . . . . . 1 . . Weapon . | . . . . . . . . Parts Attached 48 | 4 1 7 2 4 9 12 9 Power 8 | . . 2 . 1 1 2 2 Engine 6 | . . 2 . 1 1 2 . Core 2 | . . . . . . . 2 Reactor . | . . . . . . . . Propulsion 14 | 2 1 2 . 1 3 3 2 Treads 5 | 2 . . . 1 . . 2 Leg 5 | . . . . . 2 3 . Wheel 1 | . . . . . 1 . . Hover . | . . . . . . . . Flight 3 | . 1 2 . . . . . Utility 10 | . . 1 1 2 3 2 1 Device 6 | . . 1 . . 3 2 . Storage . | . . . . . . . . Processor 2 | . . . . 1 . . 1 Hackware . | . . . . . . . . Protection 2 | . . . 1 1 . . . Artifact . | . . . . . . . . Weapon 16 | 2 . 2 1 . 2 5 4 Energy Gun 8 | . . 1 . . 2 3 2 Energy Cannon 4 | . . 1 1 . . . 2 Ballistic Gun 4 | 2 . . . . . 2 . Ballistic Cannon . | . . . . . . . . Launcher . | . . . . . . . . Special Weapon . | . . . . . . . . Impact Weapon . | . . . . . . . . Slashing Weapon . | . . . . . . . . Piercing Weapon . | . . . . . . . . Special Melee Weapon . | . . . . . . . . Unidentified Prototypes 3 | . . 1 . . 1 . 1 Corrupted Parts 2 | . . 1 . . . . 1 System Corruption 7 | . . 3 . . . . 4 Parts Lost 23 | . . 2 . . 7 10 4 Power 4 | . . . . . 1 3 . Propulsion 7 | . . 1 . . 4 2 . Utility 6 | . . . . . 2 2 2 Weapon 6 | . . 1 . . . 3 2 Highest Loss Streak 4 | . . 2 . . 4 4 3 To Critical Strikes 1 | . . . . . . 1 . Average Backups 3 | . . 2 4 4 2 3 4 Power . | . . . . . . . . Propulsion . | . . 1 . 1 1 1 1 Utility . | . . 1 1 1 . 1 1 Weapon 1 | . . . 1 2 1 1 1 Tool/Special . | . . . . . . . . Unused Backups 4 | . . . . 1 . 1 2 Power . | . . . . . . . . Propulsion . | . . . . . . . . Utility 4 | . . . . 1 . 1 2 Weapon . | . . . . . . . . Tool/Special . | . . . . . . . . Average Slot Usage (%) 62 | . 57 52 57 74 58 68 70 Engine 9 | . . 11 14 14 9 8 . Core 2 | . . . . . . . 15 Treads 6 | . 28 . 9 20 1 . 11 Leg 8 | . . . . . 7 28 6 Flight 4 | . . 24 9 . . . . Device 10 | . . . . . 20 16 13 Processor 1 | . . . . . . . 7 Protection 5 | . . . 9 24 4 . . Energy Gun 5 | . . 9 4 . 5 8 2 Energy Cannon 7 | . . . 9 14 8 2 13 Ballistic Gun 2 | . 28 6 . . . 3 . Peak Build Rating 42 | 4 4 13 27 29 37 42 35 Average Rating 21 | 3 3 5 20 27 24 23 26 On Entrance 14 | . 4 3 7 26 29 27 16 Naked Turns . | . . . . . . . . Heaviest Build 41 | 2 2 9 33 38 38 41 30 Greatest Support 55 | 40 40 8 20 40 40 55 45 Greatest Overweight (x) 6 | . . 1 3 1 6 2 1 Average Overweight (x) . | . . . . . 1 . . Largest Inventory Capacity 5 | 5 5 5 5 5 5 5 5 Average Capacity 5 | 5 5 5 5 5 5 5 5 Most Carried 5 | 4 1 4 5 5 5 5 5 Average Carried 3 | . . 2 3 4 3 3 4 Final Capacity 5 | 5 5 5 5 5 5 5 5 Final Carried 5 | . 1 4 4 5 5 3 5 Class Distribution -------------------- 79% | Mutant 20% | Scavenger-Mutant Dominant Class ---------------- Mutant | -10/Materials Mutant | -10/Mines Mutant | -10/Exiles Mutant | -9/Mines Mutant | -8/Materials Scavenger-Mutant | -8/Garrison Mutant | -8/Materials Resources | -11 -10 -10 -10 -9 -8 -8 -8 ----------- Run | Yrd Mat Min Exi Min Mat Gar Mat Matter Collected 1042 | 240 . 129 . 128 249 211 85 Remotely . | . . . . . . . . Salvage Created 2897 | . . 97 . 304 1423 752 321 Parts 116 | . . 12 . 7 54 27 16 Haulers Intercepted 2 | . . . . . 2 . . Recyclers Shooed 5 | . . 1 . . 3 . 1 Parts Field Recycled . | . . . . . . . . Retrieved Matter . | . . . . . . . . Parts Self-Destructed . | . . . . . . . . Prevented . | . . . . . . . . Kills | -11 -10 -10 -10 -9 -8 -8 -8 ------- Run | Yrd Mat Min Exi Min Mat Gar Mat Combat Hostiles Destroyed 47 | . . 6 . 4 16 16 5 Guns 17 | . . 6 . . 3 8 . Cannons 14 | . . . . 1 7 1 5 AOE 8 | . . . . 2 3 3 . Classes Destroyed 14 | . . 1 . 4 6 2 1 Worker 9 | . . . . 4 5 . . Builder 3 | . . . . . 1 . 2 Tunneler 2 | . . . . 2 . . . Hauler 2 | . . . . . 2 . . Recycler 4 | . . . . . 4 . . Mechanic 1 | . . . . . 1 . . Operator 1 | . . . . . . . 1 Swarmer 9 | . . 6 . . . 3 . Grunt 20 | . . . . 2 9 5 4 Brawler 1 | . . . . . 1 . . Duelist 1 | . . . . . . 1 . Sentry 10 | . . . . 2 5 3 . Hunter 2 | . . . . . 1 . 1 Programmer 1 | . . . . . . 1 . Thug 2 | . . . . . . 2 . Savage 1 | . . . . . . 1 . Best Kill Streak 7 | . . 3 . 3 7 5 3 Combat Bots Only 5 | . . 3 . 2 5 5 3 Max Kills in Single Turn 4 | . . 1 . 2 4 2 1 Gunslinging . | . . . . . . . . Exploded 2 | . . . . 1 2 2 . Melee . | . . . . . . . . Uniques/NPCs Destroyed . | . . . . . . . . Combat | -11 -10 -10 -10 -9 -8 -8 -8 -------- Run | Yrd Mat Min Exi Min Mat Gar Mat Hostile Shots Fired 280 | . . 38 . 6 85 82 69 Missed 81 | . . 11 . 4 28 17 21 Hits 199 | . . 27 . 2 57 65 48 Projectile 199 | . . 27 . 2 57 65 48 Critical Strikes 10 | . . . . . 1 5 4 Damage Taken 3197 | . 46 297 . 132 943 1016 763 Core 789 | . 6 147 . 80 232 225 99 Absorbed by Shields . | . . . . . . . . Redirected to Shielding 27 | . . . . 4 23 . . Core Remaining (%) 53 | 100 . . . 6 . . . Volleys Fired 222 | . . 28 . 9 78 75 32 Largest 2 | . . 2 . 1 2 2 2 Hottest 250 | . . 63 . 250 250 250 130 Shots Fired 336 | . . 50 . 10 110 107 59 Gun 187 | . . 50 . . 42 95 . Cannon 149 | . . . . 10 68 12 59 Launcher . | . . . . . . . . Special . | . . . . . . . . Kinetic 66 | . . 44 . . . 22 . Thermal 254 | . . 6 . 10 110 69 59 Explosive . | . . . . . . . . Electromagnetic 16 | . . . . . . 16 . Robot Hit Streak 10 | . . 6 . 3 10 9 8 Robot Miss Streak 7 | . . 7 . 4 5 4 5 Penetration Max . | . . . . . . . . Secondary Targets . | . . . . . . . . Shots Hit Robots 165 | . . 23 . 1 58 52 31 Core Hits 97 | . . 10 . 11 36 29 11 Critical Kills . | . . . . . . . . Critical Parts Destroyed . | . . . . . . . . Critical Strikes 6 | . . . . . 2 4 . Burn 5 | . . . . . 2 3 . Corrupt 1 | . . . . . . 1 . Melee Attacks . | . . . . . . . . Impact . | . . . . . . . . Slashing . | . . . . . . . . Piercing . | . . . . . . . . Sneak Attacks . | . . . . . . . . Combat Hostiles . | . . . . . . . . Follow-up Attacks . | . . . . . . . . Damage Inflicted 4751 | . . 173 . 423 1924 1360 871 Guns 1436 | . . 173 . . 412 851 . Cannons 2099 | . . . . 86 973 169 871 Explosions 1216 | . . . . 337 539 340 . Melee . | . . . . . . . . Ramming . | . . . . . . . . Kinetic 468 | . . 173 . . . 295 . Thermal 4096 | . . . . 423 1924 878 871 Explosive . | . . . . . . . . Electromagnetic 187 | . . . . . . 187 . Impact . | . . . . . . . . Slashing . | . . . . . . . . Piercing . | . . . . . . . . Highest Corruption 5 | . . 3 3 3 . 1 5 Average Corruption 2 | . . 3 3 3 . 1 1 Corruption Purged . | . . . . . . . . Corruption Blocked . | . . . . . . . . Effects 30 | . . 8 9 10 . 1 2 Message Errors 8 | . . 2 3 3 . . . Matter Fused 5 | . . 1 3 1 . . . Heat Flow Errors 6 | . . 3 1 2 . . . Energy Discharges 3 | . . . 1 1 . . 1 Data Loss (minor) 5 | . . 1 . 2 . 1 1 Data Loss (major) 1 | . . . 1 . . . . Misfires 2 | . . 1 . 1 . . . Overload Shots . | . . . . . . . . Overflow Damage 133 | . . . . . 93 5 35 Projectiles 61 | . . . . . 26 . 35 Explosions 72 | . . . . . 67 5 . Melee . | . . . . . . . . Knockbacks . | . . . . . . . . Impact . | . . . . . . . . Kinetic . | . . . . . . . . Secondary . | . . . . . . . . Self-Inflicted Damage 103 | . . . . 24 35 44 . Shots 11 | . . . . 4 3 4 . Rammed . | . . . . . . . . Targets Rammed . | . . . . . . . . Kicked . | . . . . . . . . Crushed . | . . . . . . . . Highest Temperature 706 | . . 207 279 706 507 548 288 Average Temperature 137 | . . 77 140 230 101 152 71 Received Heat Transfer 1296 | . . . . . 432 486 378 Effects 22 | . . . . 15 6 1 . Shutdowns 5 | . . . . 4 . 1 . Energy Bleed 3 | . . . . 1 2 . . Interference 3 | . . . . 2 1 . . Matter Decay 3 | . . . . 1 2 . . Short Circuit 1 | . . . . . 1 . . Damage (minor) 1 | . . . . 1 . . . Damage (major) 4 | . . . . 4 . . . Damage (core) 2 | . . . . 2 . . . Siege Activations . | . . . . . . . . Martial Activations . | . . . . . . . . Shielding Activations . | . . . . . . . . Robots Disrupted . | . . . . . . . . Combat Hostiles . | . . . . . . . . Robots Corrupted . | . . . . . . . . Combat Hostiles . | . . . . . . . . Parts Fried . | . . . . . . . . Impact Corruptions . | . . . . . . . . Robots Melted 8 | . . . . 1 3 4 . Combat Hostiles 8 | . . . . 1 3 4 . Parts Melted 42 | . . . . 11 15 13 3 Heat Transferred 11758 | . . . . 2080 5021 3473 1184 Parts Sabotaged . | . . . . . . . . Parts Stolen . | . . . . . . . . Parts Stripped . | . . . . . . . . Power Chain Reactions . | . . . . . . . . Alert | -11 -10 -10 -10 -9 -8 -8 -8 ------- Run | Yrd Mat Min Exi Min Mat Gar Mat Maximum Alert Level 2 | . . . . . 1 2 1 Low Security (%) 59 | 100 100 100 . 100 46 18 47 Level 1 31 | . . . . . 53 36 52 Level 2 9 | . . . . . . 44 . Level 3 . | . . . . . . . . Level 4 . | . . . . . . . . Level 5 . | . . . . . . . . High Security . | . . . . . . . . Max Security . | . . . . . . . . Peak Influence 509 | . . 90 . 82 256 509 247 Initial 247 | . . . . . 6 144 247 Average 159 | . . 19 . 30 171 338 200 Influence Increases 1651 | . . 140 . 193 658 465 195 Destroy 0b10 Robot/C 940 | . . 120 . 80 320 320 100 Destroy 0b10 Robot/NC 110 | . . . . 30 65 . 15 Destroy Leader 184 | . . 20 . 10 114 10 30 Disable Machine 90 | . . . . 15 45 . 30 Anti-Garrison Action 100 | . . . . . . 100 . Destroy Structure 137 | . . . . 58 54 5 20 Lose Combat Pursuer 90 | . . . . . 60 30 . Influence Decreases 1487 | . . 140 . 175 453 179 540 Entered New Map 353 | . . . . . 12 79 262 Time Decay 923 | . . 120 . 175 390 . 238 Lost Part 211 | . . 20 . . 51 100 40 Squads Dispatched 9 | . 1 . . . 5 . 3 Investigation 1 | . 1 . . . . . . Extermination . | . . . . . . . . Reinforcement 4 | . . . . . 2 . 2 Assault . | . . . . . . . . Garrison 4 | . . . . . 3 . 1 Intercept . | . . . . . . . . Searches Triggered . | . . . . . . . . Construction Impeded 2 | . . . . . 1 . 1 Haulers Reinforced . | . . . . . . . . Active Scanning Responses . | . . . . . . . . Cargo Convoy Interrupts . | . . . . . . . . Stealth | -11 -10 -10 -10 -9 -8 -8 -8 --------- Run | Yrd Mat Min Exi Min Mat Gar Mat Distress Signals 6 | . . 1 . . 2 . 3 Communications Jammed . | . . . . . . . . Distress Signals . | . . . . . . . . Times Spotted 78 | . 1 6 . 3 28 23 17 Peak Tracking Total 7 | . 1 3 . 2 6 7 6 Tactical Retreats 5 | . . . . . 3 2 . Traps | -11 -10 -10 -10 -9 -8 -8 -8 ------- Run | Yrd Mat Min Exi Min Mat Gar Mat Traps Triggered 3 | . 3 . . . . . . Indirectly . | . . . . . . . . Trap Hack Attempts . | . . . . . . . . Triggered . | . . . . . . . . Disarmed . | . . . . . . . . Reprogrammed . | . . . . . . . . Reused . | . . . . . . . . Traps Extracted . | . . . . . . . . Installed . | . . . . . . . . Triggered . | . . . . . . . . Machines | -11 -10 -10 -10 -9 -8 -8 -8 ---------- Run | Yrd Mat Min Exi Min Mat Gar Mat Machines Disabled 10 | . . . . 3 3 2 2 Max in Single Turn 2 | . . . . 1 2 1 1 Garrison Relay 2 | . . . . . . 2 . Machines Repaired . | . . . . . . . . Machines Dismantled . | . . . . . . . . Machines Sabotaged . | . . . . . . . . Overloaded Fab Kills . | . . . . . . . . Hacking | -11 -10 -10 -10 -9 -8 -8 -8 --------- Run | Yrd Mat Min Exi Min Mat Gar Mat Machines Accessed 7 | . . 2 1 . 2 1 1 Terminals 2 | . . . . . . 1 1 Fabricators . | . . . . . . . . Repair Stations . | . . . . . . . . Recycling Units . | . . . . . . . . Scanalyzers 1 | . . . . . 1 . . Garrison Access 1 | . . . . . 1 . . Total Hacks 10 | . . 2 1 . 4 1 2 Successful 7 | . . 2 1 . 2 1 1 Failed 3 | . . . . . 2 . 1 Catastrophic . | . . . . . . . . Database Lockouts . | . . . . . . . . Manual 1 | . . . 1 . . . . Terminals 3 | . . . . . . 1 2 Fabricators . | . . . . . . . . Repair Stations . | . . . . . . . . Recycling Units . | . . . . . . . . Scanalyzers 2 | . . . . . 2 . . Garrison Access 2 | . . . . . 2 . . Terminal Hacks 5 | . . 2 1 . . 1 1 Record 1 | . . . . . . . 1 Open Door 3 | . . 2 . . . 1 . Proto ID Catalog 1 | . . . 1 . . . . Fabricator Hacks . | . . . . . . . . Repair Station Hacks . | . . . . . . . . Recycling Unit Hacks . | . . . . . . . . Scanalyzer 1 | . . . . . 1 . . Insert Component 1 | . . . . . 1 . . Garrison Access Hacks 1 | . . . . . 1 . . Unlock Access 1 | . . . . . 1 . . Unauthorized Hacks . | . . . . . . . . Terminals . | . . . . . . . . Fabricators . | . . . . . . . . Repair Stations . | . . . . . . . . Recycling Units . | . . . . . . . . Scanalyzers . | . . . . . . . . Garrison Access . | . . . . . . . . Data Cores Recovered . | . . . . . . . . Used . | . . . . . . . . Hacking Detections 1 | . . . . . 1 . . Full Trace Events . | . . . . . . . . Feedback Events . | . . . . . . . . Feedback Blocked . | . . . . . . . . Robot Schematics Acquired . | . . . . . . . . Robots Built . | . . . . . . . . Authchips . | . . . . . . . . Time . | . . . . . . . . Total Robot Build Rating . | . . . . . . . . Part Schematics Acquired . | . . . . . . . . Parts Built . | . . . . . . . . Authchips . | . . . . . . . . Time . | . . . . . . . . Total Part Build Rating . | . . . . . . . . Parts Repaired . | . . . . . . . . Time . | . . . . . . . . Parts Recycled . | . . . . . . . . Recycled Matter . | . . . . . . . . Retrieved Matter . | . . . . . . . . Retrieved Components . | . . . . . . . . Parts Scanalyzed . | . . . . . . . . Part Schematics Acquired . | . . . . . . . . Parts Damaged . | . . . . . . . . Bothacking | -11 -10 -10 -10 -9 -8 -8 -8 ------------ Run | Yrd Mat Min Exi Min Mat Gar Mat Used RIF Installer . | . . . . . . . . Robots Hacked . | . . . . . . . . Non-combat . | . . . . . . . . Combat . | . . . . . . . . Robot Hacks Applied . | . . . . . . . . Relay Couplers Released 11 | . . . . . . 11 . Machine Destruction 8 | . . . . . . 8 . Programmers 3 | . . . . . . 3 . Fabnet Peak Effective % . | . . . . . . . . Robots Rewired . | . . . . . . . . Allies Hacked . | . . . . . . . . Hacks Repelled . | . . . . . . . . Allies | -11 -10 -10 -10 -9 -8 -8 -8 -------- Run | Yrd Mat Min Exi Min Mat Gar Mat Total Allies 2 | . . 2 . . . . . Largest Group 2 | . . 2 2 . . . . Highest-Rated Group 50 | . . 50 50 . . . . Highest-Rated Ally 31 | . . 31 31 . . . . Initial Warlord ECA Mod 2 | . . . . . . . 2 Total Orders . | . . . . . . . . Ally Attacks . | . . . . . . . . Total Damage . | . . . . . . . . Kills . | . . . . . . . . Allies Corrupted . | . . . . . . . . Allies Melted . | . . . . . . . . Intel | -11 -10 -10 -10 -9 -8 -8 -8 ------- Run | Yrd Mat Min Exi Min Mat Gar Mat Active Infowar (turns) 2 | . . . . . 2 . . ECM 2 | . . . . . 2 . . Robot Analysis Total . | . . . . . . . . Derelict Logs Recovered 3 | . . 2 . 1 . . . Drone Launches . | . . . . . . . . Drone Recoveries . | . . . . . . . . Exploration | -11 -10 -10 -10 -9 -8 -8 -8 ------------- Run | Yrd Mat Min Exi Min Mat Gar Mat Turns Passed 3657 | 54 54 534 375 479 976 679 506 Spaces Moved 2192 | 39 46 759 230 188 349 309 272 Core 45 | 14 . 5 . . 26 . . Treads 535 | 25 27 . 106 188 34 . 155 Legs 663 | . . . . . 237 309 117 Wheels 52 | . . . . . 52 . . Hover . | . . . . . . . . Flight 897 | . 19 754 124 . . . . Fastest Speed 37 | 50 40 37 37 160 95 120 120 Average Speed 118 | 120 110 37 132 199 220 123 138 Slowest Speed 350 | 160 160 117 277 240 350 260 225 Overloaded Moves . | . . . . . . . . Propulsion Burnouts . | . . . . . . . . Robots Hopped . | . . . . . . . . Potential Cave-ins . | . . . . . . . . Cave-ins Triggered . | . . . . . . . . Exploration Rate (%) 42 | 3 14 98 63 54 36 41 29 Regions Visited 7 Branch Regions 3 Pre-discovered Areas . | . . . . . . . . Known Exits Taken 2 | . . . . 1 1 . . Unknown Exits Taken 4 | 1 1 1 1 . . . . Scrap Searched 3 | . . 2 . 1 . . . Spaces Dug 11 | . . . . 11 . . . Terrain Destroyed 145 | . . . . 75 51 . 19 Melee . | . . . . . . . . Projectile 38 | . . . . 11 8 . 19 AOE 107 | . . . . 64 43 . . Terrain Rammed . | . . . . . . . . Walls Destroyed . | . . . . . . . . Machines Disabled . | . . . . . . . . Actions | -11 -10 -10 -10 -9 -8 -8 -8 --------- Run | Yrd Mat Min Exi Min Mat Gar Mat Total 2960 | 46 48 968 302 284 471 499 342 Wait 407 | . . 162 63 78 6 85 13 Move 2186 | 38 45 758 229 187 349 308 272 Hop . | . . . . . . . . Pick Up 46 | 4 1 8 3 4 11 6 9 Fast Attach 14 | . . . . 1 2 8 3 Attach 46 | 4 . 7 2 2 15 9 7 Detach 9 | . . 2 1 . 3 3 . Swap 6 | . 1 1 1 1 1 . 1 Drop 24 | . 1 2 3 2 6 5 5 Fire 222 | . . 28 . 9 78 75 32 Melee . | . . . . . . . . Ram . | . . . . . . . . Kick . | . . . . . . . . Crush . | . . . . . . . . Escape Stasis . | . . . . . . . . Rewire . | . . . . . . . . Trap . | . . . . . . . . Miscellaneous . | . . . . . . . . Route ------- -11/Scrapyard -10/Materials -10/Mines (discovered 4 exits: [*Mat x2] / *Exi / [*Sub]) -10/Exiles -9/Mines (discovered 2 exits: *Mat x2) -8/Materials -8/Garrison -8/Materials (discovered 1 exit: [*Fac]) History --------- Turn | Location | Event 16 | -11/Scrapyard | Discovered new exit (range 15) 55 | -11/Scrapyard | Entered Materials 103 | -10/Materials | Discovered new exit (range 15) 109 | -10/Materials | Entered Mines 118 | -10/Mines | Learned Materials terminal intel 159 | -10/Mines | Discovered new exit (range 5) 185 | -10/Mines | Discovered new exit (range 5) 243 | -10/Mines | Met a Derelict bent on vengeance 247 | -10/Mines | Learned Materials terminal intel 258 | -10/Mines | Met a Derelict who couldn't figure out how to use a Trap Extractor 259 | -10/Mines | Core integrity fell below 50% 310 | -10/Mines | Build established: Mutant 397 | -10/Mines | Found the Drone Emporium 398 | -10/Mines | Found Prototype Device 399 | -10/Mines | Identified Thief Drone Bay 439 | -10/Mines | Discovered new exit (range 10) 588 | -10/Mines | Deemed a non-threat by the Exiles lab entrance 588 | -10/Mines | Discovered new exit (range 5) 643 | -10/Mines | Entered Exiles 643 | -10/Exiles | Accompanied by 2 allies 673 | -10/Exiles | Led the pair of lost Derelicts to a safe place 685 | -10/Exiles | Met 8R-AWN 723 | -10/Exiles | Met EX-HEX 734 | -10/Exiles | Met EX-BIN 739 | -10/Exiles | Aligned with FarCom system 739 | -10/Exiles | Given EX-Vault access code 749 | -10/Exiles | Opened EX-Vault 753 | -10/Exiles | Found Firepult 809 | -10/Exiles | Warned to stay clear of 0b10 Research branches 876 | -10/Exiles | Met EX-DEC 989 | -10/Exiles | Discovered new exit (range 11) 1018 | -10/Exiles | Left Exiles lab with Firepult 1018 | -10/Exiles | Entered Mines 1063 | -9/Mines | Discovered new exit (range 14) 1082 | -9/Mines | Joined a pair of Derelicts in attacking an 0b10 outpost 1219 | -9/Mines | Found DCF Scrap (15 items) 1332 | -9/Mines | Identified exit to Materials 1385 | -9/Mines | Core integrity fell below 20% 1497 | -9/Mines | Entered Materials 1497 | -8/Materials | Evolved 4 slots: Power x1, Propulsion x2, Utility x1 1498 | -8/Materials | Loaded intel: 12 terminal locations 1535 | -8/Materials | Garrison activated, responded to threat 1614 | -8/Materials | Lost 4 parts (1p2n1u) 2473 | -8/Materials | Identified exit to Garrison 2473 | -8/Materials | Entered Garrison 2558 | -8/Garrison | Lost 4 parts (1p2u1w) 2718 | -8/Garrison | Triggered checkpoint 2758 | -8/Garrison | Garrison Relay disabled 2841 | -8/Garrison | Core integrity fell below 50% 2877 | -8/Garrison | Build established: Scavenger-Mutant 2891 | -8/Garrison | Triggered checkpoint 2916 | -8/Garrison | Lost 3 parts (1p2w) 3004 | -8/Garrison | Discovered new exit (range 15) 3034 | -8/Garrison | Garrison Relay disabled 3136 | -8/Garrison | Core integrity fell below 20% 3152 | -8/Garrison | Entered Materials 3153 | -8/Materials | Loaded intel: 12 terminal locations 3571 | -8/Materials | Garrison activated, responded to threat 3578 | -8/Materials | Discovered new exit (range 14) 3596 | -8/Materials | Build established: Mutant 3658 | -8/Materials | Destroyed by Y-45 Defender with Beam Rifle Last Messages --------------- U-05 Engineer completes Atomic Centrifuge. K-01 Serf collects debris. Atomic Centrifuge comes online. Imp. Heat Sink destroyed. Critical hit (Burn: +37). K-01 Serf collects debris. Atomic Centrifuge disabled. K-01 Serf collects debris. U-05 Engineer builds a Wall. K-01 Serf collects debris. Critical hit (Burn: +37). Hvy. Ion Cannon destroyed. Particle Gun destroyed. Integrated Corrupted Particle Gun (+4). Complication: Mic. Nuclear Core rejected. Complication: Hvy. Ion Cannon rejected. Acquired Mic. Nuclear Core. Critical hit (Burn: +37). System corrupted: Energy discharge (-54). Acquired Hvy. Ion Cannon. Map ----- +----------------------------------------------------+ | ??????????????? " #?????????????????? | | ?????????????? """ ###???????????????? | | ????????????? """ ????????????????? | | ?????????????? """ ??????????????????? | | ?????????????? "" ^ ????????????????????? | | ???????????? """ ![ ######????????????????? | | ??????????? "" [[ # ???????????????? | | ????????? """ [[ # " ???????????????? | | ???????? " # "G" !!!?????????????? | | ???????? [!+ " " !!!?????????????? | | ??????? *k# !! ???????????? | | ???????? ###+####"T"###u =#?? #?????????? | | ?????????????????####??# #???? ?????????????? | | ???????????????????##### ##?????##?????????????? | | ????????????????######## ##????????????????????? | | ????????????????# aw=# ?????T??????????????? | | ????????????????# k Ygg#? ?????????????????? | | ????????????????# !!k # ??????????????????? | | ????????????????# !! + ????????????????????? | | ####????????????# !! #?????????????????????? | | #????????????# #?????????????????????? | | #????????????# #?????????????????????? | | "" #????????????# " " #?????????????????????? | | "" #????????????# k""" #?????????????????????? | | "" #????????????# "" #?????????????????????? | | #????????????# @ #?????????????????????? | | =#????????????# #?????????????????????? | | #??###???????#k """ #?????????????????????? | | #######T######### """ #?????????????????????? | | ^ """ #????????????????????T? | | ^ #?????????????????????? | | ^ [ #?????????????????????? | | ###+######+############# #?????????????????????? | | ? ????????####?????# #?????????????????????? | | # ! #???????????????# < #?????????????????????? | | # #???????????????# #?????????????????????? | | # " " #???????????????#####?????????????????????? | | # "R" #?????????????????????????????????????????? | | # """ #?????????????????????????????????????????? | | ########?????????????????????????????????????????? | | ?????????????????????????????????????????????????? | | | | | | | | | | | | | | | | | | | +----------------------------------------------------+ Best States ------------- Heat Dissipation 59 Energy Generation 25 Energy Capacity 455 Matter Stores 300 Matter Capacity 300 Sight Range 16 Terrain Scan Density 10 ECM Strength 1 Armor Coverage 225 Weapon Shielding 33 Weapon Cycling 15 Evasion (%) 62 Armor Integrity Analysis 30 Recoil Reduction 2 Item Schematics ----------------- None Robot Schematics ------------------ None Fabricated ------------ Nothing Repaired ---------- Nothing Alien Tech Used ----------------- None Achievements -------------- None Challenges ------------ None Game ------ Seed SniperGraphenePrototype Manual? 0 Play Time 00:32:22 Cumulative 65.9 hours Start 2025.07.22 @ 23:30:46 End 2025.07.23 @ 10:23:34 Sessions 1 Manual Loads 0 Difficulty Rogue Special Mode None Game No. 273 Rogue 273 Adventurer 0 Explorer 0 Win Type - Total 0 Types 0/0/0/0/0/0/0/0/0/0 Lore% 43 Gallery% 32 Achievement% 25 Wizard Run 0 Options --------- Layout 2 ASCII 0 Keyboard 0 Movement Mouse Keybinds 0 Fullscreen 1 Font 24/Terminus Map View 50x44 Zoom Use 0% Tactical HUD 0 Map Filters NONE Filters NONE Steam 1 RUN: baaa1d51-294e-4e3d-a9ef-3511461e7ade